[Event "2nd Doppelbauer Kiel GM 2022"]
[Site "Kiel"]
[Date "2022.07.03"]
[Round "7.5"]
[White "Meshkovs, Nikita"]
[Black "Ernst, Sipke"]
[Result "1/2-1/2"]
[ECO "D30"]
[WhiteElo "2553"]
[BlackElo "2547"]
[Annotator "TA"]
[PlyCount "135"]
[EventDate "2022.06.30"]
[EventType "tourn"]
[EventCountry "GER"]
[SourceTitle "playchess.com"]
[Source "ChessBase"]
[SourceQuality "1"]
[TimeControl "40/5400+30:1800+30"]

{[%evp 9,135,21,23,22,34,10,32,12,28,27,32,38,33,27,33,27,73,56,68,68,79,68,74,48,62,47,54,49,46,46,46,55,48,56,76,79,124,124,121,113,147,160,143,148,146,152,220,178,178,182,167,161,279,258,249,246,248,165,255,247,237,221,300,295,293,250,210,148,293,286,723,526,526,312,312,318,310,313,304,325,325,333,333,317,318,302,310,311,326,325,325,321,299,1,8,16,38,0,8,0,0,0,0,0,0,0,0,0,0,0,0,0,0,0,620,587,536,0,0,0,0,0,0,0,0,0,0,0]} 1. c4 {[%emt 0:00:05]} e6 {[%emt 0:00:07]} 2. d4 {[%emt 0:00:35]} d5 {[%emt 0:00:06]} 3. Nf3 {[%emt 0:02:28]} a6 {[%emt 0:00:04]} 4. Bg5 {[%emt 0:00:10]} Be7 {[%emt 0:00:38]} 5. Bxe7 {[%emt 0:00:06]} Qxe7 {[%emt 0:01:52]} 6. Nbd2 {[%emt 0:00:53] D30: Queen's Gambit Declined: Systems without Nc3.} Nf6 {[%emt 0:00:15]} 7. e3 {[%emt 0:00:16]} Nc6 {[%emt 0:03:23]} 8. Qb3 {[%emt 0:05:48] White is slightly better.} O-O {[%emt 0:04:07]} 9. Rc1 {[%emt 0:03:30]} Rd8 {[%emt 0:01:29] [#]} 10. cxd5 $146 {[%emt 0:09:30]} ({Predecessor:} 10. Be2 e5 11. cxd5 Nxd5 12. Nxe5 Nxe5 13. dxe5 Be6 14. Qa4 b5 15. Qe4 Nb6 16. Qc2 {0-1 (43) Franco Alonso,A (2434)-Grandelius,N (2644) Linares 2017}) 10... exd5 {[%emt 0:05:07]} 11. Bd3 {[%emt 0:02:40]} Ne4 {[%emt 0:17:04]} 12. O-O {[%emt 0:03:12]} g5 {[%emt 0:06:02]} (12... a5 $11) 13. Qa3 {[%emt 0:07:42] aiming for Qxe7.} (13. Bb1 {is more complex.} Rd6 14. Bxe4 dxe4 15. Nxg5 Qxg5 16. Nxe4 Qb5 17. Qxb5 axb5 18. d5) 13... Qxa3 {[%emt 0:12:09]} 14. bxa3 {[%emt 0:00:18]} Nxd2 {[%emt 0:01:35]} 15. Nxd2 {[%emt 0:00:02]} Rd7 {[%emt 0:01:35]} 16. Rc3 {[%emt 0:17:05]} Ne7 {[%emt 0:04:02]} 17. a4 {[%emt 0:03:00]} c6 {[%emt 0:00:27]} 18. a5 {[%emt 0:00:43]} Rc7 $1 {[%emt 0:01:35]} 19. f4 {[%emt 0:03:01]} gxf4 {[%emt 0:02:12]} 20. Rxf4 {[%emt 0:00:03]} Be6 {[%emt 0:04:44]} 21. Nb3 {[%emt 0:01:47]} Rd8 {[%emt 0:04:39]} 22. Nc5 {[%emt 0:02:18]} Bc8 {[%emt 0:00:13]} 23. Rb3 $36 {[%emt 0:09:45][%mdl 2048] White is really pushing. 0x0.00222d3c3ccadp-1022s more active pieces. The black rooks are badly placed.} Ng6 {[%emt 0:02:05]} 24. Rf2 {[%emt 0:00:50]} Re8 {[%emt 0:04:32]} 25. Bf5 $1 {[%emt 0:02:08]} Bxf5 {[%emt 0:03:38]} 26. Rxf5 {[%emt 0:00:55]} Ree7 {[%emt 0:02:19]} 27. Rf2 {[%emt 0:01:05]} f5 {[%emt 0:04:17]} (27... h5 $16 {was called for.} 28. g3 h4) 28. Rxf5 {[%emt 0:01:50]} Nf8 {[%emt 0:00:05]} 29. Re5 {[%emt 0:01:09] Against Ne6} Rxe5 {[%emt 0:00:56]} 30. dxe5 $18 {[%emt 0:00:02][%mdl 4096] Endgame KRN-KRN} Nd7 {[%emt 0:01:30]} (30... Ng6 $142) 31. Ne6 {[%emt 0:01:51]} (31. Nxb7 Kf7 $16) (31. Rxb7 Rxb7 32. Nxb7 Nxe5 $16) 31... Rc8 {[%emt 0:00:04]} 32. Rxb7 {[%emt 0:00:06]} Nxe5 {[%emt 0:01:14]} 33. Rg7+ {[%emt 0:02:50]} Kh8 {[%emt 0:00:02]} 34. Ra7 {[%emt 0:00:08]} Re8 {[%emt 0:01:47]} 35. Nc5 {[%emt 0:06:16]} Nc4 {[%emt 0:01:16]} 36. Rxa6 {[%emt 0:01:00]} Rxe3 {[%emt 0:00:07]} 37. Ra8+ {[%emt 0:01:28]} (37. Rxc6 Nxa5 38. Rd6 Ra3 $16) 37... Kg7 {[%emt 0:11:43]} 38. a4 {[%emt 0:00:04] Strongly threatening a6.} d4 {[%emt 0:00:00]} (38... Ra3 $16 {was necessary.} 39. Kf2 (39. a6 Nb6 $16) 39... Nb2) 39. a6 {[%emt 0:01:45]} Re5 $2 {[%emt 0:00:00] [#]} (39... d3) 40. a7 $1 {[%emt 0:01:42]} Nb6 {[%emt 0:00:00] [#]} 41. Nd7 $1 {[%emt 0:33:11][%mdl 512]} Nxd7 {[%emt 0:27:20] [#]} 42. Rg8+ $3 {[%emt 0:07:20][%mdl 576] Decoy, Clearance, Promotion} Kxg8 {[%emt 0:00:08]} 43. a8=Q+ {[%emt 0:00:03] KQ-KRN} Kf7 {[%emt 0:00:05]} 44. Qxc6 {[%emt 0:00:36]} Nc5 {[%emt 0:02:50]} 45. Kf1 {[%emt 0:00:00] And now a5 would win.} Ke7 {[%emt 0:00:00]} 46. Qc7+ {[%emt 0:00:00]} Ke6 {[%emt 0:00:00]} 47. a5 {[%emt 0:00:00]} ({Don't take} 47. Qxh7 d3 48. Qg8+ Kd7 49. Qg7+ Kd6 50. Qf8+ Kd5 $18) 47... d3 {[%emt 0:00:00]} 48. Qc8+ {[%emt 0:00:00]} ({Much less strong is} 48. Qxh7 Kd5 49. Qh4 Re4 50. Qg5+ Kc4 51. Qc1+ Kb4 $18) 48... Kd6 {[%emt 0:00:00]} 49. Qb8+ {[%emt 0:00:00]} Ke6 {[%emt 0:00:00] [#]} 50. Qg8+ $1 {[%emt 0:00:00]} Kd6 {[%emt 0:00:00]} 51. Qxh7 $2 {[%emt 0:00:00]} ({White should try} 51. Qf8+ $18 Kd7 52. Qf2) 51... Kd5 $1 $11 {[%emt 0:00:00]} 52. Qh4 {[%emt 0:00:00]} Re6 {[%emt 0:00:00]} 53. Qf4 {[%emt 0:00:10] Threatens to win with h4.} Ne4 {[%emt 0:00:00]} 54. Qf7 {[%emt 0:02:37] Black must now prevent a6.} Nc5 {[%emt 0:00:00]} 55. a6 {[%emt 0:02:11] White wants to mate with a7.} d2 {[%emt 0:00:02]} 56. Qf3+ {[%emt 0:01:40]} Kd4 {[%emt 0:02:03] ( -> ...Re1+)} 57. a7 {[%emt 0:00:26]} Re1+ {[%emt 0:04:33]} 58. Kf2 {[%emt 0:00:01]} Ne4+ $1 {[%emt 0:01:08]} 59. Qxe4+ {[%emt 0:00:16]} Kxe4 {[%emt 0:00:52]} (59... Rxe4 $2 60. a8=Q Re1 61. Qd8+ Kc3 62. Qc7+ Kb4 63. Qf4+ Kc3 64. Qf6+ Kc4 65. Qc6+ Kb4 66. Qb7+ Kc4 67. Qf7+ Kd4 68. Qg7+ Kc4 69. Qg4+ Kc3 70. Qg3+ Kd4 71. Qh4+ Kc3 72. Qh3+ Kd4 73. Qh4+ Kc3 74. Qg3+ Kc4 75. Qf4+ Kc3 76. Qc7+ Kb4 77. Qd6+ Kc3 78. Qg3+ $18) 60. a8=Q+ {[%emt 0:00:02] KQ-KR} Kd3 {[%emt 0:02:29]} 61. Qd5+ {[%emt 0:00:50]} Kc2 $2 {[%emt 0:00:00][%mdl 8192]} (61... Kc3 $11 62. h4 Rh1) 62. Qc4+ $18 {[%emt 0:00:08]} Kb2 {[%emt 0:00:00] [#]} 63. g4 $2 {[%emt 0:01:40]} (63. Qd3 $1 $18 {[%cal Rd3d2]} d1=Q 64. Qb5+ Kc3 65. Qa5+ Kc4 66. Qxe1 Qd4+ 67. Qe3 Qf6+ 68. Ke2) 63... Rc1 $11 {[%emt 0:00:00] The position is equal.} 64. Qb4+ {[%emt 0:00:07]} Kc2 {[%emt 0:00:00]} 65. Qa4+ {[%emt 0:00:02]} Kc3 $1 {[%emt 0:00:00]} 66. Qa3+ {[%emt 0:01:05]} Kc2 {[%emt 0:00:00]} 67. Qa2+ {[%emt 0:00:42]} Kc3 {[%emt 0:00:00]} 68. Qa3+ {[%emt 0:00:33] Weighted Error Value: White=0.26 (precise) /Black=0.14 (very precise)} 1/2-1/2

[Event "2nd Doppelbauer Kiel GM 2022"]
[Site "Kiel"]
[Date "2022.07.04"]
[Round "8.1"]
[White "Parvanyan, Ashot"]
[Black "Ernst, Sipke"]
[Result "1/2-1/2"]
[ECO "D11"]
[WhiteElo "2455"]
[BlackElo "2547"]
[Annotator "TA"]
[PlyCount "65"]
[EventDate "2022.06.30"]
[EventType "tourn"]
[EventCountry "GER"]
[SourceTitle "playchess.com"]
[Source "ChessBase"]
[SourceQuality "1"]
[TimeControl "40/5400+30:1800+30"]

{[%evp 9,65,13,10,14,4,0,0,0,7,0,3,13,10,7,13,0,0,0,0,1,25,18,24,20,17,7,126,130,116,119,125,89,80,34,37,45,37,40,37,30,102,102,109,104,91,48,49,48,57,0,56,7,107,0,26,0,103,0]} 1. Nf3 {[%emt 0:00:04]} d5 {[%emt 0:00:14]} 2. d4 {[%emt 0:00:21]} Nf6 {[%emt 0:00:06]} 3. c4 {[%emt 0:00:05]} c6 {[%emt 0:00:03]} 4. g3 {[%emt 0:00:45]} Bf5 {[%emt 0:01:11]} 5. Nc3 {[%emt 0:00:24]} e6 {[%emt 0:00:28]} 6. Nh4 {[%emt 0:00:12] D11: Slav Defence: 3 Nf3 sidelines and 3...Nf6 4 e3 Bg4.} dxc4 {[%emt 0:00:16]} 7. Nxf5 {[%emt 0:00:25]} exf5 {[%emt 0:00:07]} 8. e3 {[%emt 0:00:02] The position is equal.} Nbd7 {[%emt 0:01:25]} 9. Bxc4 {[%emt 0:00:07] Strongly threatening Qb3.} Nb6 {[%emt 0:00:05]} 10. Bb3 {[%emt 0:01:36]} Qd7 {[%emt 0:02:28]} 11. O-O {[%emt 0:01:43][%cal Bh1f1,Bf1e1,Be1e4][%mdl 32]} h5 {[%emt 0:00:07] [#]} 12. e4 $146 {[%emt 0:00:14]} ({Predecessor:} 12. Qf3 h4 13. e4 hxg3 14. hxg3 fxe4 15. Nxe4 Nxe4 16. Qxe4+ Be7 17. Re1 Kf8 18. Bf4 {½-½ (31) Bjerre,J (2559)-Andersen,M (2577) Svendborg 2020}) 12... fxe4 {[%emt 0:10:56]} 13. Re1 {[%emt 0:00:32]} O-O-O {[%emt 0:04:52]} 14. Nxe4 {[%emt 0:01:12]} Nxe4 {[%emt 0:15:54]} (14... h4 $5 {[%cal Rh4g3]}) 15. Rxe4 {[%emt 0:02:11]} h4 {[%emt 0:01:14]} 16. Bg5 {[%emt 0:02:13]} ({Much worse is} 16. gxh4 Nd5 $11) 16... hxg3 {[%emt 0:00:58]} 17. fxg3 {[%emt 0:13:29] aiming for Qe2.} Re8 {[%emt 0:11:04]} (17... Qf5 $11 18. Re5 Qh7 19. Qg4+ Kb8) 18. Rxe8+ $16 {[%emt 0:09:33]} Qxe8 {[%emt 0:00:14]} 19. Qg4+ {[%emt 0:14:30]} Kb8 {[%emt 0:05:09]} 20. Qf4+ {[%emt 0:20:41]} Ka8 {[%emt 0:00:06] White must now prevent ...f6.} 21. Qxf7 {[%emt 0:01:23] White is more active.} (21. Bxf7 $16 Qe2 22. Qf2 Qxf2+ 23. Kxf2) 21... Qe2 $14 {[%emt 0:00:09][%csl LRb2,LRh2]} 22. h4 {[%emt 0:03:40] Threatens to win with Rf1.} Bd6 $1 {[%emt 0:01:59]} 23. Qf2 {[%emt 0:02:46]} Qg4 {[%emt 0:01:44]} 24. Kg2 {[%emt 0:01:52]} Rf8 {[%emt 0:03:41]} (24... Re8 $1 $11 25. Bd1 Qe6) 25. Qe3 $16 {[%emt 0:00:37]} Nd5 {[%emt 0:04:49]} 26. Bxd5 {[%emt 0:00:10]} cxd5 {[%emt 0:00:04]} 27. Rc1 {[%emt 0:05:39]} a6 {[%emt 0:02:29]} 28. b3 {[%emt 0:02:48]} Ka7 {[%emt 0:02:57][%cal Of8e8]} 29. a4 {[%emt 0:00:07]} (29. Qd3 $1 $14) 29... Ka8 {[%emt 0:01:58]} ({Better is} 29... Re8 $11 30. Qxe8 Qxg3+ 31. Kf1 Qf3+ 32. Kg1 Qg3+ 33. Kf1 Qf3+ 34. Kg1 Qg3+ 35. Kf1) 30. Re1 {[%emt 0:04:57]} (30. Qd3 $14) 30... Bc7 {[%emt 0:10:20] [#]} (30... Rc8 $11 {keeps the balance.} 31. Rf1 Rc2+ 32. Rf2 Rxf2+ 33. Qxf2 (33. Kxf2 Qf5+ 34. Bf4 Bxf4 $11) 33... Qe4+ 34. Kh2 Ka7) 31. Rc1 {[%emt 0:04:11]} (31. Qd3 $1 $16) 31... Bd6 $11 {[%emt 0:00:17]} 32. Re1 {[%emt 0:00:04]} (32. Ra1 $11) 32... Bc7 $16 {[%emt 0:01:32] [#]} 33. Rc1 {[%emt 0:00:03] Weighted Error Value: White=0.21 (precise) /Black=0.21 (precise)} (33. Qd3 $1 $16) 1/2-1/2

[Event "2nd Doppelbauer Kiel GM 2022"]
[Site "Kiel"]
[Date "2022.07.04"]
[Round "8.2"]
[White "Bogner, Sebastian"]
[Black "Meshkovs, Nikita"]
[Result "1/2-1/2"]
[ECO "B30"]
[WhiteElo "2553"]
[BlackElo "2553"]
[Annotator "TA"]
[PlyCount "76"]
[EventDate "2022.06.30"]
[EventType "tourn"]
[EventCountry "GER"]
[SourceTitle "playchess.com"]
[Source "ChessBase"]
[SourceQuality "1"]
[TimeControl "40/5400+30:1800+30"]

{[%evp 13,76,16,44,57,86,41,41,45,30,0,21,-10,0,0,0,0,0,0,0,0,0,7,21,25,44,25,35,37,23,0,0,0,0,0,0,0,0,0,69,0,0,0,0,0,0,0,0,0,8,-10,-10,-35,-40,-46,0,0,0,0,0,0,0,0,0,0,0]} 1. e4 {[%emt 0:00:04]} c5 {[%emt 0:01:35]} 2. Nf3 {[%emt 0:00:17]} Nc6 {[%emt 0:00:35]} 3. Nc3 {[%emt 0:00:10]} Nf6 {[%emt 0:01:56]} 4. Bb5 {[%emt 0:01:05]} Nd4 {[%emt 0:14:19]} 5. e5 {[%emt 0:02:22]} Nxb5 {[%emt 0:06:42]} 6. Nxb5 {[%emt 0:00:17]} Nd5 {[%emt 0:00:16]} 7. Ng5 {[%emt 0:00:10]} f5 {[%emt 0:18:43] is the legacy move (7...f6).} 8. O-O {[%emt 0:09:59] B30: Sicilian: 2...Nc6 3 Bb5, lines without ...g6.} Nc7 {[%emt 0:05:44] [#]} 9. Nxc7+ $146 {[%emt 0:20:14]} ({Predecessor:} 9. a4 a6 10. Nc3 e6 11. d4 cxd4 12. Qxd4 d6 13. exd6 Qxd6 14. Qh4 Qb4 15. Bf4 Bd6 {1-0 (42) Gharamian,T (2656)-Cherniaev,A (2434) London 2013}) 9... Qxc7 {[%emt 0:00:07]} 10. e6 {[%emt 0:00:07] White is slightly better.} g6 {[%emt 0:08:41]} 11. d4 {[%emt 0:03:48]} Bg7 {[%emt 0:02:28]} 12. dxc5 {[%emt 0:17:03]} (12. Qf3 $5 {[%cal Re6d7]}) 12... dxe6 {[%emt 0:02:18]} 13. Qe2 {[%emt 0:01:18]} Qxc5 {[%emt 0:00:11]} 14. Nxe6 {[%emt 0:01:21]} Bxe6 {[%emt 0:00:11]} 15. Qxe6 {[%emt 0:00:03]} Qc6 {[%emt 0:01:37]} 16. Qb3 {[%emt 0:01:29]} O-O-O {[%emt 0:01:07]} 17. Bg5 {[%emt 0:04:27]} Rd7 {[%emt 0:22:24]} 18. Rad1 {[%emt 0:04:30]} Rc7 {[%emt 0:00:28]} 19. c3 {[%emt 0:08:18]} h6 {[%emt 0:01:39]} 20. Be3 {[%emt 0:00:37]} b6 $1 {[%emt 0:00:50]} 21. Rd5 {[%emt 0:03:58]} e6 {[%emt 0:01:34]} 22. Rd3 {[%emt 0:02:14]} Rd8 {[%emt 0:00:47]} 23. Rxd8+ {[%emt 0:01:56]} Kxd8 {[%emt 0:00:01]} 24. a4 {[%emt 0:00:55]} Rd7 {[%emt 0:02:39]} 25. Re1 {[%emt 0:02:20]} e5 {[%emt 0:02:15]} ({Black should play} 25... Ke8 $11) 26. f3 {[%emt 0:01:56]} ({Better is} 26. a5 $1 $14) 26... Qd5 $1 $11 {[%emt 0:02:49]} 27. c4 {[%emt 0:01:00]} Qd3 {[%emt 0:01:04]} 28. Qb4 {[%emt 0:03:34]} Ke8 {[%emt 0:00:07]} 29. c5 {[%emt 0:01:03]} bxc5 {[%emt 0:00:06]} 30. Qxc5 {[%emt 0:00:40]} Kf7 {[%emt 0:00:24]} 31. b4 {[%emt 0:00:32]} Bf8 {[%emt 0:01:39]} 32. Qb5 {[%emt 0:02:20]} ({Don't blunder} 32. Qxe5 $2 Bxb4 33. Bxh6 Bxe1 34. Qg7+ Ke6 35. Qxg6+ Kd5 $19) 32... Qxb5 {[%emt 0:00:37]} 33. axb5 $15 {[%emt 0:00:02][%mdl 4096] Endgame KRB-KRB} Rd5 {[%emt 0:00:35]} (33... Bxb4 $15 34. Rb1 (34. Ra1 f4 $15) 34... Be7) 34. Ra1 $11 {[%emt 0:00:03] The position is equal.} Rxb5 {[%emt 0:00:27]} 35. Rxa7+ {[%emt 0:00:01]} Ke6 {[%emt 0:00:29]} 36. Ra6+ {[%emt 0:00:02]} Kf7 {[%emt 0:00:13]} 37. Ra7+ {[%emt 0:00:06]} Ke6 {[%emt 0:00:21]} 38. Ra6+ {[%emt 0:00:54]} Kf7 {[%emt 0:00:06] Weighted Error Value: White=0.09 (flawless) /Black=0.11 (very precise)} 1/2-1/2

[Event "2nd Doppelbauer Kiel GM 2022"]
[Site "Kiel"]
[Date "2022.07.04"]
[Round "8.3"]
[White "Horvath, Dominik"]
[Black "Farokhi, Keyvan"]
[Result "1/2-1/2"]
[ECO "D37"]
[WhiteElo "2482"]
[BlackElo "2360"]
[Annotator "TA"]
[PlyCount "67"]
[EventDate "2022.06.30"]
[EventType "tourn"]
[EventCountry "GER"]
[SourceTitle "playchess.com"]
[Source "ChessBase"]
[SourceQuality "1"]
[TimeControl "40/5400+30:1800+30"]

{[%evp 9,67,29,24,20,32,27,27,20,15,15,14,14,20,21,31,29,32,20,20,28,33,31,35,28,37,38,36,27,27,35,28,33,38,40,48,26,56,0,11,0,0,0,0,0,0,0,0,0,0,0,0,0,0,-25,0,0,0,-18,0,0]} 1. Nf3 {[%emt 0:00:03]} Nf6 {[%emt 0:00:06]} 2. c4 {[%emt 0:00:04]} e6 {[%emt 0:00:20]} 3. Nc3 {[%emt 0:00:16]} d5 {[%emt 0:01:08]} 4. d4 {[%emt 0:00:07]} h6 {[%emt 0:07:55]} 5. e3 {[%emt 0:03:51]} Bd6 {[%emt 0:08:23]} 6. b3 {[%emt 0:02:18] D37: Queen's Gambit Declined: 5 Bf4.} c6 {[%emt 0:01:34]} 7. Bb2 {[%emt 0:00:10]} Nbd7 {[%emt 0:01:02]} 8. Bd3 {[%emt 0:08:47] White has an edge.} O-O {[%emt 0:00:30]} 9. O-O {[%emt 0:00:03] [#]} Qe7 $146 {[%emt 0:04:02]} ({Predecessor:} 9... Re8 10. Ne2 Ne4 11. Qc2 f5 12. Nf4 Ndf6 13. Nd2 Bxf4 14. exf4 Bd7 15. f3 Nd6 {0-1 (27) Montiel Caceres,H (1403)-Vergara Aquino,J Encarnacion 2019}) 10. Re1 {[%emt 0:03:18]} e5 {[%emt 0:08:17] [#] aiming for ...e4.} 11. Nh4 {[%emt 0:18:21]} g6 {[%emt 0:11:25] Prevents Nf5.} 12. cxd5 {[%emt 0:19:06]} Nxd5 {[%emt 0:01:28]} 13. Nxd5 {[%emt 0:00:16]} cxd5 {[%emt 0:09:34]} (13... Qxh4 {feels hotter.} 14. Nc3 f5 15. Bc4+ Kh7) 14. dxe5 $1 {[%emt 0:00:09]} Bxe5 {[%emt 0:00:15]} 15. Bxe5 {[%emt 0:00:43]} Nxe5 {[%emt 0:00:11]} 16. Nf3 {[%emt 0:00:19]} Bg4 {[%emt 0:09:37]} 17. Be2 {[%emt 0:00:08] Hoping for Nxe5.} Bxf3 {[%emt 0:00:07]} 18. Bxf3 {[%emt 0:00:12]} Nxf3+ {[%emt 0:00:11]} 19. Qxf3 {[%emt 0:00:04]} Rfd8 {[%emt 0:07:16]} 20. Red1 {[%emt 0:00:38]} Qe4 {[%emt 0:00:43]} 21. Qf6 {[%emt 0:07:56]} Qe6 {[%emt 0:00:51]} 22. Qh4 {[%emt 0:02:26]} h5 {[%emt 0:01:27]} 23. Rac1 {[%emt 0:00:31]} Rdc8 $1 {[%emt 0:01:00]} 24. Qd4 {[%emt 0:11:50]} Rxc1 $1 {[%emt 0:02:38]} 25. Rxc1 {[%emt 0:00:04]} Rc8 $1 {[%emt 0:00:07]} 26. Rxc8+ {[%emt 0:03:47]} Qxc8 $11 {[%emt 0:00:02][%mdl 4096] Endgame KQ-KQ} 27. g3 {[%emt 0:00:09][%cal Bg2g3,Bg3g4][%mdl 32]} Qf5 {[%emt 0:02:25]} 28. Kg2 {[%emt 0:06:38]} b6 {[%emt 0:02:32]} 29. h3 {[%emt 0:00:12]} Qe4+ {[%emt 0:06:42]} 30. Qxe4 {[%emt 0:04:42]} dxe4 {[%emt 0:00:10]} 31. g4 {[%emt 0:04:00]} h4 {[%emt 0:03:22]} 32. f3 {[%emt 0:03:51][%cal Bf2f3,Bf3f4,Bf4g5][%mdl 32] The position is equal.} g5 {[%emt 0:00:41]} 33. f4 {[%emt 0:00:45]} f6 {[%emt 0:00:06]} 34. fxg5 {[%emt 0:00:04] Weighted Error Value: White=0.06 (flawless) /Black=0.04 (flawless)} 1/2-1/2

[Event "2nd Doppelbauer Kiel GM 2022"]
[Site "Kiel"]
[Date "2022.07.04"]
[Round "8.4"]
[White "Rosner, Jonas"]
[Black "Teclaf, Pawel"]
[Result "1/2-1/2"]
[ECO "D11"]
[WhiteElo "2469"]
[BlackElo "2537"]
[Annotator "ChessBase"]
[PlyCount "106"]
[EventDate "2022.06.30"]
[EventType "tourn"]
[EventCountry "GER"]
[SourceTitle "playchess.com"]
[Source "ChessBase"]
[SourceQuality "1"]
[TimeControl "40/5400+30:1800+30"]

1. d4 {[%emt 0:00:03]} Nf6 {[%emt 0:00:07]} 2. Nf3 {[%emt 0:00:26]} d5 {[%emt 0:00:06]} 3. c4 {[%emt 0:00:07]} c6 {[%emt 0:00:05]} 4. e3 {[%emt 0:00:17]} Bg4 {[%emt 0:00:07]} 5. Qb3 {[%emt 0:00:44]} Qb6 {[%emt 0:01:58]} 6. Ne5 {[%emt 0:00:57]} e6 {[%emt 0:06:01]} 7. Nxg4 {[%emt 0:02:30]} Nxg4 {[%emt 0:01:50]} 8. Nc3 {[%emt 0:00:44]} Nd7 {[%emt 0:01:42]} 9. Be2 {[%emt 0:01:35]} Ngf6 {[%emt 0:00:42]} 10. O-O {[%emt 0:00:41]} Be7 {[%emt 0:03:22]} 11. Bd2 {[%emt 0:04:29]} O-O {[%emt 0:01:24]} 12. Rfd1 {[%emt 0:01:27]} Rac8 {[%emt 0:06:28]} 13. Be1 {[%emt 0:12:23]} Rfe8 {[%emt 0:10:55]} 14. Rac1 {[%emt 0:07:34]} Bf8 {[%emt 0:03:21]} 15. Qxb6 {[%emt 0:11:12]} axb6 {[%emt 0:00:31]} 16. a4 {[%emt 0:01:54]} dxc4 {[%emt 0:08:40]} 17. Bxc4 {[%emt 0:00:31]} Bb4 {[%emt 0:02:15]} 18. Kf1 {[%emt 0:06:13]} Red8 {[%emt 0:13:18]} 19. f3 {[%emt 0:03:10]} e5 {[%emt 0:08:11]} 20. d5 {[%emt 0:07:47]} Nc5 {[%emt 0:00:40]} 21. e4 {[%emt 0:06:14]} cxd5 {[%emt 0:06:50]} 22. exd5 {[%emt 0:06:35]} Kf8 {[%emt 0:08:34]} 23. b3 {[%emt 0:06:18]} Ne8 {[%emt 0:01:53]} 24. Bg3 {[%emt 0:01:19]} Nxb3 {[%emt 0:02:26]} 25. Bxb3 {[%emt 0:01:09]} Bxc3 {[%emt 0:02:15]} 26. Bf2 {[%emt 0:01:27]} Ba5 {[%emt 0:01:07]} 27. Bg3 {[%emt 0:02:02]} Rxc1 {[%emt 0:01:11]} 28. Rxc1 {[%emt 0:00:03]} f6 {[%emt 0:00:24]} 29. Ke2 {[%emt 0:05:40]} Nd6 {[%emt 0:01:29]} 30. Bf2 {[%emt 0:01:14]} Ke7 {[%emt 0:01:02]} 31. g4 {[%emt 0:00:47]} Rc8 {[%emt 0:03:15]} 32. Rxc8 {[%emt 0:02:18]} Nxc8 {[%emt 0:00:01]} 33. Kd3 {[%emt 0:01:08]} Kd6 {[%emt 0:00:46]} 34. h4 {[%emt 0:05:59]} Ne7 {[%emt 0:01:02]} 35. h5 {[%emt 0:00:30]} Nxd5 {[%emt 0:00:40]} 36. Ke4 {[%emt 0:00:03]} Ne7 {[%emt 0:01:48]} 37. Be3 {[%emt 0:00:36]} g6 {[%emt 0:01:35]} 38. h6 {[%emt 0:00:51]} f5+ {[%emt 0:00:43]} 39. Kd3 {[%emt 0:00:25]} Nd5 {[%emt 0:00:44]} 40. g5 {[%emt 0:00:37]} Bb4 {[%emt 0:00:29]} 41. Bc1 {[%emt 0:03:35]} Be1 {[%emt 0:17:07]} 42. Ba3+ {[%emt 0:03:26]} Kc6 {[%emt 0:00:04]} 43. Bc4 {[%emt 0:01:42]} Bh4 {[%emt 0:00:36]} 44. Bc1 {[%emt 0:01:39]} Bg3 {[%emt 0:03:01]} 45. Bb5+ {[%emt 0:06:56]} Kc7 {[%emt 0:03:14]} 46. Bc4 {[%emt 0:03:36]} Ne7 {[%emt 0:03:32]} 47. Bf7 {[%emt 0:01:31]} Kd7 {[%emt 0:03:31]} 48. Bd2 {[%emt 0:04:37]} Bh4 {[%emt 0:02:25]} 49. f4 {[%emt 0:01:35]} e4+ {[%emt 0:00:56]} 50. Ke3 {[%emt 0:03:04]} Kc6 {[%emt 0:00:16]} 51. Ke2 {[%emt 0:01:05]} Bg3 {[%emt 0:00:09]} 52. Be3 {[%emt 0:01:38]} Nd5 {[%emt 0:01:10]} 53. Bxg6 {[%emt 0:01:05]} Nxf4+ {[%emt 0:00:31]} 1/2-1/2